bitfinex-derivatives/quotes_ETHF0:USTF0_20250909
["timestamp","ask_amount","ask_price","bid_price","bid_amount"]
[1757423039391,0.86036048,4344.3,4343.6,0.235]
[1757423039392,0.7132,4344.3,4344.2,0.7073]
[1757423039687,0.56757925,4344.3,4344.2,0.9423]
[1757423039895,3.6164,4345.0,4344.3,0.3044]
[1757423040093,4.0378,4345.0,4344.9,0.1988]
[1757423040289,4.60548152,4345.0,4344.9,0.1988]
[1757423040490,4.60548152,4345.0,4344.7,0.2]
[1757423040792,0.7132,4344.1,4344.0,0.1988]
[1757423040995,1.28077747,4344.1,4344.0,0.235]
[1757423041493,1.28077747,4344.1,4344.0,0.4338]
[1757423041791,3.2078,4344.4,4344.0,1.0671]
[1757423042092,0.2918,4344.9,4344.4,0.3044]
[1757423042287,0.98891234,4344.8,4344.7,0.1988]
[1757423042489,3.2078,4345.2,4344.7,0.7073]
[1757423042685,0.77846073,4345.1,4345.0,0.5277]
[1757423042995,1.28056073,4345.1,4345.0,0.8321]
[1757423043192,0.7132,4345.1,4345.0,0.8321]
[1757423043792,0.7132,4345.1,4345.0,0.7073]
[1757423044395,0.7132,4345.1,4345.0,0.8321]
[1757423044796,0.7132,4345.1,4345.0,0.7073]
[1757423045296,0.4214,4344.7,4344.4,3.2078]
[1757423045494,0.7132,4344.3,4344.2,0.5032]
[1757423045691,0.7132,4344.3,4344.2,0.9423]
[1757423046894,0.7132,4344.3,4344.2,0.235]
[1757423047392,0.2111,4344.3,4344.2,0.9423]
[1757423047588,0.7132,4344.6,4344.5,0.8321]
[1757423047792,0.7132,4344.6,4343.6,36.3718]
[1757423047793,0.4214,4344.0,4343.9,0.5032]
[1757423047997,0.83,4344.0,4343.9,0.4338]
[1757423048196,0.83,4344.0,4343.9,0.235]
[1757423048394,0.83,4344.0,4343.9,0.7382]
[1757423048595,0.83,4344.0,4343.9,0.5032]
[1757423048790,0.83,4344.0,4343.9,0.235]
[1757423048991,0.4214,4343.8,4343.7,0.5032]
[1757423049194,0.4214,4343.8,4343.7,0.9423]
[1757423049395,0.5029,4344.2,4344.1,0.4029]
[1757423049595,0.7132,4344.2,4344.1,0.7073]
[1757423049796,0.2918,4344.1,4343.6,3.2078]
[1757423049996,0.7132,4343.7,4343.5,0.3044]
[1757423050201,0.2918,4343.6,4343.5,0.235]
[1757423050400,0.7132,4343.6,4343.5,0.4338]
[1757423050696,0.4214,4343.6,4343.5,1.0671]
[1757423050993,3.4189,4344.0,4343.9,0.4029]
[1757423051193,0.2111,4344.0,4343.9,0.7073]
[1757423051594,0.7132,4344.0,4343.9,0.5085]
[1757423051902,0.7132,4343.7,4343.1,0.3044]
[1757423052100,0.4214,4343.7,4343.2,0.211]
[1757423052298,0.2918,4343.9,4343.5,0.1988]
[1757423052502,0.7132,4343.6,4343.5,0.4348]
[1757423052892,0.7132,4343.6,4343.0,3.3326]
[1757423053103,0.2111,4342.6,4342.5,3.7355]
[1757423053402,0.2111,4342.6,4342.5,3.9705]
[1757423053896,3.4189,4343.2,4343.1,0.4029]
[1757423054100,3.2078,4343.2,4343.1,0.9423]
[1757423054302,3.4189,4343.2,4343.1,0.9423]
[1757423055502,3.921,4343.2,4343.1,0.9423]
[1757423055805,4.19407135,4343.2,4342.2,0.3044]
[1757423056001,0.4214,4342.4,4342.3,0.4348]
[1757423056205,0.7132,4342.4,4342.3,0.4348]
[1757423056504,0.4214,4342.4,4342.3,0.9433]
[1757423056702,3.5087,4342.7,4342.4,0.3062]
[1757423057007,0.2035,4342.7,4342.6,0.7188]
[1757423057606,0.3009,4343.1,4342.6,0.7188]
[1757423057800,3.2078,4343.2,4342.7,0.3062]
[1757423058002,0.9699078,4343.1,4343.0,0.5168]
[1757423058204,0.9699078,4343.1,4342.9,0.236]
[1757423058505,0.2035,4342.6,4342.5,0.843]
[1757423058707,0.3009,4343.0,4342.5,0.7728]
[1757423058909,0.7058,4343.0,4342.9,0.7188]
[1757423059609,0.4049,4343.0,4342.9,0.7188]
[1757423060208,0.7058,4343.0,4342.9,0.7188]
[1757423060805,0.1292,4343.0,4342.6,0.3062]
[1757423061010,0.4049,4342.7,4341.8,3.2078]
[1757423061205,0.4049,4342.4,4342.3,0.5168]
[1757423061412,0.7058,4342.4,4342.3,0.9548]
[1757423062108,0.7058,4342.4,4342.3,0.2106]
[1757423062308,0.4049,4342.2,4341.5,0.1248]
[1757423062513,0.2035,4341.6,4341.5,0.8436]
[1757423062815,0.2035,4341.6,4341.5,1.0796]
[1757423063107,0.2035,4341.6,4341.5,0.8436]
[1757423063615,0.2035,4341.6,4341.5,1.0796]
[1757423063800,0.4049,4341.9,4341.2,3.2078]
[1757423064007,0.7058,4341.3,4340.7,33.165]
[1757423064205,0.7058,4340.9,4340.8,0.5168]
[1757423064406,0.1292,4341.5,4340.0,3.332]
[1757423064407,3.337,4341.0,4340.0,3.332]
[1757423064606,0.2014,4340.2,4340.1,0.9548]
[1757423064807,3.337,4341.0,4340.1,0.6486]
[1757423065008,0.2035,4340.3,4340.2,0.7188]
[1757423065210,0.3009,4340.2,4339.8,0.3062]
[1757423065411,0.2035,4339.6,4339.5,4.0508]
[1757423065611,0.5044,4339.9,4339.8,0.4126]
[1757423065911,0.3009,4340.3,4339.8,0.7188]
[1757423066207,3.337,4340.5,4338.9,3.2078]
[1757423066208,3.2078,4339.9,4338.9,3.2078]
[1757423066414,0.3009,4339.8,4339.2,0.3062]
[1757423066712,0.4049,4339.8,4339.7,0.7188]
[1757423066905,0.7058,4339.8,4339.2,0.3062]
[1757423067106,3.2078,4339.4,4339.2,0.236]
[1757423067307,0.5201,4339.3,4338.8,0.3062]
[1757423067614,0.1152,4339.3,4338.9,0.5422]
[1757423067813,0.7058,4339.0,4338.9,0.7528]
[1757423068208,0.7058,4339.0,4338.9,0.2106]
[1757423068416,0.7058,4339.0,4338.9,0.7528]
[1757423068613,0.4049,4338.7,4338.6,0.7538]
[1757423068811,0.821,4339.3,4339.2,0.2106]
[1757423069012,0.821,4339.3,4338.8,0.237]
[1757423069715,0.3009,4339.2,4338.6,0.5432]
[1757423070106,0.7058,4339.2,4339.1,0.2106]
[1757423070310,0.7058,4339.2,4338.7,0.5168]
[1757423070311,0.4049,4338.8,4338.7,0.5168]
[1757423070516,0.7058,4338.8,4338.6,0.237]
[1757423070711,0.7058,4338.8,4338.7,0.5168]
[1757423070917,0.2035,4338.2,4338.1,0.7188]
[1757423071113,0.3009,4338.1,4337.9,3.2078]
[1757423071319,0.4049,4338.2,4338.1,0.7188]
[1757423071907,0.3009,4338.1,4337.9,3.2078]
[1757423072220,0.4301,4338.0,4336.0,0.1242]
[1757423072515,0.3009,4336.6,4336.0,0.1242]
[1757423072717,3.5087,4336.7,4336.1,0.3062]
[1757423072909,3.2078,4336.6,4336.1,0.3062]
[1757423073314,0.1292,4337.5,4336.2,0.164]
[1757423073315,0.3009,4336.9,4336.2,0.164]
[1757423073514,3.2078,4337.6,4337.0,0.4304]
[1757423073721,0.3009,4338.0,4337.3,0.3062]
[1757423074112,0.4301,4338.0,4337.3,0.3062]
[1757423074319,0.4301,4338.0,4337.3,0.5442]
[1757423074521,0.4301,4338.0,4337.3,0.3062]
[1757423074717,0.4301,4338.0,4337.4,0.238]
[1757423075117,0.3009,4338.0,4337.1,0.3062]
[1757423075323,3.2078,4338.1,4337.3,0.3062]
[1757423075520,0.3009,4338.0,4337.3,0.3062]
[1757423076014,0.238,4338.6,4338.0,0.1242]
[1757423076015,3.2078,4338.6,4338.0,0.1242]
[1757423076217,3.2078,4338.6,4338.5,0.4304]
[1757423076412,0.3009,4339.1,4338.5,0.3062]
[1757423076618,0.3009,4338.9,4338.6,0.5442]
[1757423076825,3.2078,4339.2,4338.7,0.3062]
[1757423077327,0.3009,4338.9,4338.7,0.238]
[1757423077512,0.3009,4338.9,4338.1,0.3062]
[1757423077717,3.2078,4338.7,4338.2,0.129]
[1757423078111,3.2078,4338.7,4337.8,3.2078]
[1757423078112,0.3009,4338.6,4338.3,0.3062]
[1757423078318,0.3009,4339.1,4338.5,0.1242]
[1757423078517,3.323,4339.3,4338.6,0.3062]
[1757423079522,0.1152,4339.3,4339.1,0.3062]
[1757423079716,0.1152,4339.3,4339.2,0.5442]
[1757423079922,3.2078,4340.6,4339.5,0.1242]
[1757423080122,3.2078,4340.6,4339.8,0.3062]
[1757423080320,3.2078,4340.6,4340.0,0.4304]
[1757423080623,0.1292,4342.0,4339.1,3.2078]
[1757423080624,3.2078,4340.1,4339.1,3.2078]
[1757423080927,0.3009,4339.3,4339.2,0.238]
[1757423081120,3.5087,4339.8,4339.2,0.5442]
[1757423081321,3.337,4340.5,4339.2,0.238]
[1757423081628,0.3009,4340.4,4339.3,0.3062]
[1757423082125,0.3009,4340.4,4339.6,0.3062]
[1757423082522,0.3009,4340.4,4339.7,0.239]
[1757423083131,0.3009,4340.4,4339.8,0.239]
[1757423083525,0.1292,4340.0,4339.9,0.239]
[1757423083725,0.1292,4340.0,4339.2,0.116]
[1757423083726,3.6379,4340.0,4339.2,0.116]
[1757423084024,3.2078,4340.0,4339.3,0.3062]
[1757423085725,0.3009,4339.9,4339.3,0.3062]
[1757423085927,0.1292,4339.5,4339.4,0.239]
[1757423086126,0.4301,4339.5,4339.4,0.239]
[1757423086326,0.3009,4339.4,4338.5,0.3062]
[1757423086525,0.3174,4338.7,4338.4,0.3119]
[1757423087026,3.2078,4338.8,4338.3,3.2078]
[1757423087232,0.1246,4338.5,4338.3,3.2078]
[1757423087427,0.3174,4338.4,4338.3,3.4468]
[1757423087731,0.3174,4338.4,4337.8,33.194]
[1757423087928,3.2078,4338.2,4337.8,33.433]
[1757423088233,0.3174,4338.1,4337.9,0.239]
[1757423088531,3.2078,4338.2,4337.9,0.5509]
[1757423089429,3.2078,4338.2,4337.9,0.239]
[1757423089633,0.3174,4337.9,4336.9,3.5197]
[1757423089931,0.1246,4338.0,4336.4,0.3119]
[1757423089932,0.1246,4337.0,4336.4,0.3119]
[1757423090130,0.1246,4337.0,4335.7,3.2078]
[1757423090131,3.2078,4336.7,4335.7,3.2078]
[1757423090325,3.2078,4336.0,4335.2,3.2078]
[1757423090633,3.2078,4336.0,4335.4,0.3119]
[1757423090634,3.5252,4336.0,4335.4,0.3119]
[1757423090835,0.1153,4335.9,4335.3,0.24]
[1757423091037,0.1153,4335.9,4335.3,0.3119]
[1757423091230,0.3174,4335.8,4335.1,0.3119]
[1757423092432,0.1153,4335.9,4335.2,3.2078]
[1757423092631,0.1153,4335.9,4335.5,0.1276]
[1757423092831,0.1153,4335.9,4335.6,0.3119]
[1757423093032,0.1153,4335.9,4335.5,0.1276]
[1757423093232,0.1153,4335.9,4335.5,0.24]
[1757423093444,0.3174,4335.8,4335.6,0.3119]
[1757423093636,0.1153,4335.9,4335.7,0.3119]
[1757423093940,3.2078,4336.5,4335.7,3.2078]
[1757423094231,0.56340725,4336.4,4336.0,0.1276]
[1757423094431,4.7588335,4337.8,4336.3,0.72692]
[1757423094632,0.3174,4337.6,4336.8,3.5197]
[1757423094825,0.88097126,4337.5,4336.9,0.24]
[1757423095030,0.56357126,4337.4,4337.0,0.1276]
[1757423095235,0.1152,4337.5,4337.0,0.1276]
[1757423095540,0.1152,4337.5,4337.1,0.3119]
[1757423095736,0.1152,4337.5,4337.4,0.3119]
[1757423095932,3.5252,4338.8,4337.6,0.3119]
[1757423096133,0.56389793,4338.7,4338.1,0.3119]
[1757423096434,3.5252,4339.3,4338.6,3.2078]
[1757423096638,0.3174,4339.1,4338.8,0.3119]
[1757423096839,0.3174,4338.9,4338.7,0.241]
[1757423097055,0.1246,4339.0,4338.1,3.2078]
[1757423097234,0.3174,4338.8,4338.2,0.241]
[1757423097632,3.5252,4339.3,4338.3,0.3119]
[1757423097931,0.56412311,4339.2,4338.3,0.3119]
[1757423098138,0.56412311,4339.1,4338.3,0.3119]
[1757423098437,0.3174,4339.8,4338.7,0.3119]
[1757423098637,0.56417117,4339.7,4339.2,0.3119]
[1757423098938,0.3174,4339.5,4339.1,3.5197]
[1757423099139,0.3174,4339.4,4338.7,0.3119]
[1757423099333,0.56409895,4339.3,4338.8,0.241]
[1757423099538,0.3174,4339.4,4338.8,0.241]
[1757423099741,0.3174,4339.4,4338.9,0.241]
[1757423100441,3.2078,4340.0,4339.1,0.3119]
[1757423101041,3.2078,4340.6,4339.8,0.41468]
[1757423101338,3.2078,4340.6,4340.0,3.5197]
[1757423101539,3.5252,4341.3,4340.5,3.2078]
[1757423101841,3.2078,4341.8,4341.1,3.2078]
[1757423102039,0.56094334,4341.7,4341.2,0.241]
[1757423102235,0.3174,4341.6,4341.3,0.241]
[1757423102537,0.3174,4341.4,4341.3,0.241]
[1757423102734,0.3174,4341.4,4340.5,3.2078]
[1757423102936,0.1246,4340.5,4340.2,33.204]
[1757423103134,0.3174,4340.4,4340.3,0.241]
[1757423103538,0.3174,4340.4,4340.2,33.204]
[1757423103734,3.2078,4340.3,4340.2,33.445]
[1757423103934,3.76406548,4340.3,4339.0,3.2078]
[1757423104134,0.3174,4339.4,4339.1,0.241]
[1757423104334,0.3174,4339.1,4338.5,3.2078]
[1757423104632,3.2078,4339.2,4338.6,0.241]
[1757423104837,0.3174,4339.6,4338.6,0.241]
[1757423105135,0.3174,4339.6,4338.7,0.3119]
[1757423105339,0.3174,4339.4,4338.8,0.241]
[1757423105740,0.1246,4340.0,4339.1,3.2078]
[1757423106045,0.3174,4339.9,4339.2,0.3119]
[1757423106246,0.3174,4339.9,4339.2,0.5539]
[1757423106451,0.3174,4339.9,4339.3,0.242]
[1757423107138,0.3174,4339.9,4339.1,3.2078]
[1757423107139,0.1246,4339.5,4339.1,3.2078]
[1757423107338,0.1246,4339.5,4339.2,0.242]
[1757423107339,0.442,4339.5,4339.2,0.242]
[1757423107539,0.442,4339.5,4339.3,0.242]
[1757423107742,0.3174,4339.4,4339.3,0.242]
[1757423108339,4.3174,4339.4,4338.4,3.2078]
[1757423108538,0.1246,4338.5,4338.4,3.2078]
[1757423108742,0.1246,4339.0,4338.3,0.5539]
[1757423108934,0.1246,4339.0,4338.4,0.242]
[1757423109435,0.1246,4339.0,4338.6,0.3119]
[1757423109436,0.3174,4338.9,4338.6,0.3119]
[1757423109742,0.1246,4339.5,4338.6,0.3119]
[1757423109743,0.3174,4339.5,4338.6,0.3119]
[1757423109942,0.3174,4339.5,4338.5,0.3696]
[1757423109943,0.1246,4339.5,4338.9,3.2078]
[1757423110145,0.3174,4339.4,4338.8,0.242]
[1757423110846,0.3174,4339.4,4338.9,0.3119]
[1757423111145,0.442,4339.5,4338.9,0.3119]
[1757423112140,0.3174,4339.5,4338.9,3.5197]
[1757423112346,0.3174,4339.5,4339.1,0.3119]
[1757423112546,3.6498,4340.0,4339.0,0.1276]
[1757423112742,3.2078,4340.0,4339.5,0.1276]
[1757423112944,3.6498,4340.5,4339.7,0.3119]
[1757423113646,3.5252,4340.5,4339.7,0.41469]
[1757423113842,3.2078,4340.5,4340.1,0.3119]
[1757423114150,0.3174,4340.9,4340.2,0.242]
[1757423114352,0.3174,4341.4,4340.4,3.2078]
[1757423114651,0.3174,4341.4,4340.5,0.3119]
[1757423115143,0.3174,4340.9,4340.5,0.242]
[1757423115338,0.3174,4340.9,4339.9,3.2078]
[1757423115544,0.3174,4340.4,4340.3,0.242]
[1757423115746,0.3174,4340.4,4340.1,0.242]
[1757423115941,0.3174,4340.4,4340.0,0.242]
[1757423116147,3.3324,4340.5,4339.6,33.197]
[1757423116346,0.1246,4340.0,4339.6,33.197]
[1757423116648,0.1275,4339.5,4339.3,0.242]
[1757423116948,0.3181,4339.4,4339.3,0.242]
[1757423117146,0.3181,4339.4,4338.8,3.2078]
[1757423117346,0.3181,4339.4,4338.9,0.5452]
[1757423117649,3.2078,4340.0,4339.2,0.3032]
[1757423118141,0.3181,4339.9,4339.2,0.3032]
[1757423118346,3.3353,4340.0,4338.8,3.2078]
[1757423118552,3.3353,4340.0,4338.8,3.4498]
[1757423118750,0.3181,4338.9,4338.8,3.4498]
[1757423119151,0.4456,4339.5,4338.8,3.753]
[1757423120345,0.1275,4339.5,4338.8,3.2078]
[1757423120646,0.1275,4339.5,4338.2,3.2078]
[1757423120647,0.1275,4339.0,4338.2,3.2078]
[1757423120842,0.1275,4339.0,4337.7,0.3032]
[1757423121044,0.1275,4338.0,4337.1,0.3032]
[1757423121249,0.1275,4338.0,4337.1,0.5452]
[1757423121250,3.2078,4337.8,4337.1,0.5452]
[1757423121443,0.3181,4337.7,4337.1,0.5452]
[1757423121751,0.3181,4337.7,4337.0,3.2078]
[1757423122145,0.3181,4337.7,4336.8,0.242]
[1757423122342,3.4498,4337.8,4336.4,3.511]
[1757423122640,0.3181,4337.7,4336.5,0.242]
[1757423122844,0.3181,4336.9,4336.4,3.2078]
[1757423123150,3.2078,4337.0,4336.4,3.2078]
[1757423123151,3.2078,4337.0,4336.5,0.3032]
[1757423123448,3.2078,4337.0,4336.6,0.242]
[1757423123649,3.2078,4337.0,4336.7,0.3032]
[1757423123849,3.3353,4337.0,4336.4,3.2078]
[1757423124044,3.2078,4337.0,4336.5,0.242]
[1757423124251,0.3181,4336.9,4336.5,0.242]
[1757423124645,0.3181,4336.9,4336.6,0.3032]
[1757423124841,0.3181,4336.9,4336.5,0.242]
[1757423125042,0.3181,4336.9,4336.6,0.3032]
[1757423125351,3.3353,4337.0,4336.6,0.3032]
[1757423125651,3.2078,4337.0,4336.5,0.3659]
[1757423125852,3.2078,4337.0,4336.7,0.3032]
[1757423126052,3.2078,4337.0,4336.6,0.3032]
[1757423126249,0.4456,4337.5,4336.6,0.3032]
[1757423127550,3.2078,4337.2,4336.7,0.243]
[1757423127745,0.3181,4337.1,4336.4,3.2078]
[1757423127951,0.3181,4336.9,4336.4,3.2078]
[1757423128151,0.1275,4337.0,4336.5,0.243]
[1757423128351,0.3181,4336.9,4336.5,0.243]
[1757423128548,0.3181,4336.9,4336.4,3.2078]
[1757423128754,0.3181,4336.9,4336.5,0.5462]
[1757423128954,0.4456,4336.5,4336.4,0.243]
[1757423129450,0.4456,4336.5,4335.9,33.4982]
[1757423129451,0.1275,4336.5,4336.2,0.243]
[1757423129646,0.3181,4336.4,4336.2,0.243]
[1757423130052,0.3181,4336.6,4336.3,0.3032]
[1757423130452,0.3181,4336.6,4335.9,33.195]
[1757423130647,3.2078,4336.7,4336.0,0.243]
[1757423130852,3.2078,4337.4,4336.3,3.2078]
[1757423131355,0.3181,4337.3,4336.3,3.2078]
[1757423131555,0.3181,4337.3,4336.4,0.3032]
[1757423131756,0.3181,4337.3,4336.6,0.3032]
[1757423131960,0.3181,4337.3,4336.7,0.244]
[1757423133255,0.3181,4337.3,4336.8,0.3032]
[1757423133457,3.5259,4337.4,4336.8,0.3032]
[1757423133652,3.5259,4337.4,4336.7,0.244]
[1757423134058,3.5259,4337.4,4336.4,0.3032]
[1757423134254,3.5259,4337.4,4336.5,0.3669]
[1757423134463,3.5259,4337.4,4336.6,0.3032]
[1757423136162,3.5259,4337.4,4336.7,0.243]
[1757423136469,3.5259,4337.4,4336.6,0.3032]
[1757423136470,0.3181,4336.8,4336.1,0.3032]
[1757423136667,0.3181,4336.8,4336.2,0.243]
[1757423137268,3.2078,4336.9,4335.9,33.195]
[1757423137570,0.3181,4336.4,4335.9,33.195]
[1757423137869,0.4456,4336.0,4335.9,33.195]
[1757423138168,0.4456,4336.0,4335.9,33.438]
[1757423138367,0.3181,4336.0,4335.9,33.7412]
[1757423138573,3.2078,4336.4,4335.9,33.438]
[1757423138768,3.2078,4336.4,4336.0,0.3032]
[1757423138969,3.2078,4336.4,4335.9,33.195]
[1757423138970,0.3181,4336.3,4336.1,0.244]
[1757423139172,3.2078,4336.4,4336.2,0.244]
[1757423139475,3.2078,4336.4,4335.9,33.195]
[1757423139767,0.1275,4336.0,4335.0,0.3032]
[1757423139973,0.3181,4335.8,4335.1,0.244]
[1757423140771,0.3181,4335.8,4335.2,0.244]
[1757423141568,0.3181,4335.8,4335.3,0.244]
[1757423141776,0.3181,4335.8,4335.4,0.243]
[1757423141969,3.2078,4335.9,4335.4,0.243]
[1757423142468,0.3181,4335.8,4335.4,0.243]
[1757423142678,3.2078,4335.9,4335.4,0.5462]
[1757423142970,3.2078,4335.9,4335.5,0.3032]
[1757423143273,0.3181,4336.3,4335.6,0.243]
[1757423143473,3.5259,4336.4,4335.7,0.41508]
[1757423143672,3.5259,4336.4,4335.8,0.3032]
[1757423143971,0.3181,4335.9,4335.8,0.244]
[1757423144170,3.5259,4336.4,4335.9,0.3032]
[1757423144676,0.3181,4336.3,4335.8,0.5472]
[1757423144877,3.5259,4336.4,4335.8,0.5472]
[1757423145269,3.5259,4336.9,4335.9,0.53382]
[1757423145474,3.5259,4336.9,4336.2,0.3032]
[1757423145775,3.5259,4336.9,4336.3,0.244]
[1757423146073,3.5259,4336.9,4336.4,0.244]
[1757423146275,3.5259,4336.9,4336.5,0.168]
[1757423146473,0.3181,4336.8,4336.6,0.189]
[1757423146773,0.3181,4336.8,4335.6,3.2078]
[1757423146774,0.23061,4336.8,4335.6,3.2078]
[1757423146982,0.3125,4335.9,4335.4,0.167]
[1757423147374,0.1281,4336.0,4335.4,0.167]
[1757423147579,0.3125,4335.9,4335.4,0.167]
[1757423147877,3.2078,4336.1,4335.5,0.3224]
[1757423148678,0.1281,4336.0,4335.6,0.244]
[1757423149281,0.1281,4336.0,4335.6,0.5664]
[1757423149472,0.3125,4335.9,4335.6,0.244]
[1757423149669,0.3125,4335.9,4335.7,0.3224]
[1757423149876,3.5203,4336.1,4335.7,0.3224]
[1757423150078,3.2078,4336.1,4335.6,0.244]
[1757423150480,3.2078,4336.1,4335.7,0.3224]
[1757423150786,0.3125,4336.9,4336.0,3.3349]
[1757423151083,0.3125,4336.7,4336.1,0.3224]
[1757423151376,0.3125,4336.9,4336.2,0.244]
[1757423151778,0.3125,4336.9,4336.3,0.3224]
[1757423151980,0.3125,4336.9,4336.6,0.3224]
[1757423152283,0.3125,4336.9,4336.5,3.3349]
[1757423152485,0.3125,4337.4,4336.6,0.3224]
[1757423153182,0.1275,4337.5,4336.5,3.2078]
[1757423153391,0.86536206,4337.4,4336.6,0.244]
[1757423153583,0.3125,4337.2,4336.0,36.5539]
[1757423153778,0.1281,4336.5,4336.0,36.4268]
[1757423154088,0.3125,4336.4,4336.1,0.244]
[1757423154287,0.1281,4336.5,4336.1,0.244]
[1757423154485,0.3125,4336.4,4336.1,0.244]
[1757423154685,0.3125,4336.4,4336.2,0.244]
[1757423155385,0.1281,4336.5,4336.2,0.244]
[1757423155789,0.3125,4336.4,4336.2,0.244]
[1757423155982,0.1281,4336.5,4336.2,0.244]
[1757423156385,0.3125,4336.4,4336.2,0.244]
[1757423156586,0.1281,4336.5,4336.3,0.244]
[1757423156780,0.3125,4336.4,4336.3,0.244]
[1757423157382,3.2078,4336.6,4336.3,0.244]
[1757423157576,0.3125,4336.5,4336.3,0.244]
[1757423157782,0.3125,4336.4,4336.3,0.244]
[1757423157987,0.4406,4337.0,4336.3,0.5664]
[1757423158187,0.55304401,4336.9,4336.3,0.3224]
[1757423158383,0.3125,4336.7,4336.4,0.5664]
[1757423158684,0.1281,4337.0,4336.4,0.5664]
[1757423158988,0.3125,4336.8,4336.6,0.3224]
[1757423159183,0.3125,4336.9,4336.7,0.244]
[1757423159577,0.3125,4337.2,4336.7,0.244]
[1757423159884,0.3125,4337.0,4336.8,0.3224]
[1757423160184,3.2078,4337.3,4336.8,0.3224]
[1757423160579,3.2078,4337.3,4336.5,3.2078]
[1757423160580,0.3125,4337.2,4336.5,3.2078]
[1757423160785,0.3125,4336.9,4336.6,0.244]
[1757423160986,0.1281,4337.0,4336.6,0.244]
[1757423161187,0.3125,4336.9,4336.2,0.3224]
[1757423161386,0.3125,4336.9,4336.3,0.244]
[1757423161688,3.2078,4337.3,4336.4,3.7742]
[1757423161890,0.55446707,4337.2,4337.0,3.2078]
[1757423162188,0.3125,4337.2,4337.1,0.244]
[1757423162885,0.3125,4337.2,4336.6,0.3224]
[1757423163087,0.3125,4337.2,4337.1,0.244]
[1757423163281,0.3125,4337.2,4336.9,0.244]
[1757423163282,0.54308,4337.2,4336.9,0.244]
[1757423163482,0.3125,4336.9,4336.0,33.219]
[1757423163682,0.3125,4336.7,4336.1,0.244]
[1757423164087,0.3125,4336.7,4336.1,0.5664]
[1757423164788,0.3125,4336.2,4335.7,0.3224]
[1757423164990,0.3125,4336.2,4335.9,0.3224]
[1757423165181,3.2078,4336.3,4335.9,0.3224]
[1757423165994,0.3125,4336.2,4336.0,0.244]
[1757423166490,3.2078,4336.3,4336.0,0.244]
[1757423166690,0.3125,4336.2,4336.0,0.244]
[1757423166891,0.3125,4336.2,4335.5,0.1271]
[1757423167081,0.3125,4336.2,4335.6,0.244]
[1757423167287,0.3125,4336.2,4335.7,0.244]
[1757423167799,3.5203,4336.3,4335.7,0.5664]
[1757423168095,0.3125,4336.2,4335.1,0.3224]
[1757423168293,0.3125,4336.2,4335.3,0.3224]
[1757423168790,0.1281,4335.5,4335.0,3.3317]
[1757423169089,0.1281,4335.5,4335.1,0.244]
[1757423169288,0.3125,4335.4,4334.8,0.244]
[1757423169786,0.1281,4335.5,4334.2,33.218]
[1757423169787,0.1281,4335.0,4334.2,33.218]
[1757423169989,0.3125,4334.9,4334.3,0.244]
[1757423170591,0.3125,4335.4,4334.6,0.3224]
[1757423170893,3.2078,4335.2,4334.7,0.244]
[1757423171081,0.1281,4335.0,4334.4,0.3224]
[1757423171284,0.1281,4335.0,4334.4,0.244]
[1757423171487,0.3125,4334.9,4334.4,0.244]
[1757423171690,0.1281,4335.0,4334.4,0.244]
[1757423172091,0.3125,4334.9,4334.4,0.244]
[1757423172391,1.14049031,4331.6,4330.8,5.34476718]
[1757423172584,0.1281,4333.0,4330.7,3.20035156]
[1757423172585,3.2078,4331.5,4331.0,0.1271]
[1757423172785,8.2,4332.9,4331.1,0.245]
[1757423173087,0.60442892,4332.8,4331.8,3.2078]
[1757423173289,3.2078,4332.7,4331.8,3.2078]
[1757423173491,3.2078,4332.7,4332.0,0.1271]
[1757423173690,3.5203,4332.7,4332.1,0.247]
[1757423173888,0.3125,4332.6,4332.2,0.247]
[1757423174193,3.2078,4332.7,4332.0,0.1271]
[1757423174493,3.2078,4333.7,4332.6,3.2078]
[1757423174691,3.3231,4334.8,4334.0,0.1271]
[1757423174884,0.59309751,4334.7,4334.1,0.3224]
[1757423175195,0.1153,4334.8,4334.5,3.2078]
[1757423175491,0.1153,4334.8,4334.7,0.3224]
[1757423175686,0.1153,4334.8,4334.7,0.248]
[1757423175893,0.1153,4334.8,4334.0,3.2078]
[1757423176092,0.3125,4334.7,4334.1,0.249]
[1757423176294,0.1153,4334.8,4334.6,0.3224]
[1757423176483,0.1153,4334.8,4334.6,0.2926]
[1757423176690,0.1153,4334.8,4334.7,0.5416]
[1757423176894,0.1153,4334.8,4334.7,4.2926]
[1757423177291,3.2078,4336.3,4335.1,0.2926]
[1757423177484,3.2078,4336.3,4335.5,0.2926]
[1757423177691,3.2078,4336.3,4335.6,0.249]
[1757423178888,0.3215,4336.2,4335.4,3.2078]
[1757423179103,0.3215,4336.2,4334.9,0.2926]
[1757423179304,0.3215,4336.2,4335.0,0.249]
[1757423179798,0.3215,4336.2,4335.3,3.2078]
[1757423180296,0.3215,4336.2,4335.4,0.2926]
[1757423180598,0.3215,4336.2,4335.5,0.249]
[1757423180796,0.3215,4336.2,4335.3,3.2078]
[1757423181093,0.3215,4335.4,4334.8,0.2926]